Cogmind - Beta 12 *** ADVENTURER MODE // 2023.06.13 @ 08:04:52 Player: Moshh Result: Self-destructed Performance ------------- Evolutions (2) 1000 Regions Visited (5) 1000 Robots Destroyed (25) 125 Value Destroyed (583) 583 Prototype IDs (1) 20 Alien Tech Used (0) 0 Bonus (0) 0 TOTAL SCORE: 2728 Bonus ------- None Cogmind --------- Core Integrity 550/550 Matter 280/300 Energy 160/160 System Corruption 0% Temperature Cool (0) Movement Hovering (120) Ox1 Location -8/Materials Parts ------- > --- POWER (1) -------- Light Nuclear Core > --- PROPULSION (4) --- Improved Hover Unit VTOL Module > --- UTILITY (4) ------ Structural Scanner Visual Processing Unit Signal Interpreter Thief Drone Bay (1/3) > --- WEAPON (2) ------- Plasma Cutter > --- INVENTORY (5) ---- Light Ion Engine Light Treads High-capacity Matter Pod (200) Experimental Sensor Array Seismic Detector Peak State ------------ > --- POWER ------------ Light Nuclear Core > --- PROPULSION ------- Improved Hover Unit VTOL Module > --- UTILITY ---------- Structural Scanner Visual Processing Unit Signal Interpreter Thief Drone Bay > --- WEAPON ----------- Plasma Cutter > --- INVENTORY -------- Light Ion Engine High-capacity Matter Pod Experimental Sensor Array Seismic Detector [Rating: 21] Favorites ----------- Power Light Nuclear Core Engine Light Ion Engine Power Core Light Nuclear Core Propulsion Light Treads Treads Light Treads Leg Aluminum Leg Hover Unit Improved Hover Unit Flight Unit VTOL Module Utility Structural Scanner Device Structural Scanner Processor Visual Processing Unit Weapon Medium Laser Energy Gun Medium Laser Special Weapon Plasma Cutter Build | -11 -10 -10 -9 -9 -8 ------- Run | Jun Mat Min Mat Min Mat Slots Evolved 4 | . . . 2 . 2 Power . | . . . . . . Propulsion 2 | . . . 1 . 1 Utility 2 | . . . 1 . 1 Weapon . | . . . . . . Parts Attached 26 | 7 . 3 12 2 2 Power 3 | 1 . 1 1 . . Engine 2 | 1 . 1 . . . Core 1 | . . . 1 . . Reactor . | . . . . . . Propulsion 9 | 2 . . 5 1 1 Treads 5 | 2 . . 3 . . Leg 2 | . . . 2 . . Wheel . | . . . . . . Hover 1 | . . . . . 1 Flight 1 | . . . . 1 . Utility 10 | 2 . 2 4 1 1 Device 7 | 2 . 1 3 1 . Storage . | . . . . . . Processor 3 | . . 1 1 . 1 Hackware . | . . . . . . Protection . | . . . . . . Artifact . | . . . . . . Weapon 4 | 2 . . 2 . . Energy Gun 3 | 2 . . 1 . . Energy Cannon . | . . . . . . Ballistic Gun . | . . . . . . Ballistic Cannon . | . . . . . . Launcher . | . . . . . . Special Weapon 1 | . . . 1 . . Impact Weapon . | . . . . . . Slashing Weapon . | . . . . . . Piercing Weapon . | . . . . . . Special Melee Weapon . | . . . . . . Unidentified Prototypes 1 | . . . . 1 . Parts Lost 7 | . . 2 5 . . Power 1 | . . . 1 . . Propulsion 3 | . . . 3 . . Utility 1 | . . 1 . . . Weapon 2 | . . 1 1 . . Highest Loss Streak 2 | . . 1 2 . . To Critical Strikes . | . . . . . . Average Slot Usage (%) 83 | . 100 90 85 69 70 Engine 6 | . 14 14 5 . . Core 5 | . . . 5 11 9 Treads 19 | . 28 28 24 7 . Flight 2 | . . . . 7 9 Device 22 | . 28 15 25 22 18 Processor 7 | . . 8 6 11 18 Energy Gun 14 | . 28 22 18 . . Special Weapon 3 | . . . 1 11 9 Naked Turns . | . . . . . . Heaviest Build 13 | 10 10 10 13 11 11 Greatest Support 60 | 40 40 40 60 40 7 Greatest Overweight (x) 2 | . . . . 2 2 Average Overweight (x) . | . . . . 1 1 Largest Inventory Capacity 5 | 5 5 5 5 5 5 Average Capacity 5 | 5 5 5 5 5 5 Most Carried 5 | . 4 5 5 5 5 Average Carried 3 | . 1 4 4 4 4 Final Capacity 5 | 5 5 5 5 5 5 Final Carried 5 | . 4 5 5 5 5 Class Distribution -------------------- 75% | Mutant 24% | Scavenger-Mutant Dominant Class ---------------- Mutant | -10/Materials Mutant | -10/Mines Scavenger-Mutant | -9/Materials Mutant | -9/Mines Mutant | -8/Materials Resources | -11 -10 -10 -9 -9 -8 ----------- Run | Jun Mat Min Mat Min Mat Matter Collected 628 | 268 . 198 142 20 . Remotely . | . . . . . . Salvage Created 823 | 134 70 147 472 . . Parts 45 | 7 2 6 30 . . Haulers Intercepted . | . . . . . . Recyclers Shooed . | . . . . . . Parts Field Recycled . | . . . . . . Retrieved Matter . | . . . . . . Parts Self-Destructed . | . . . . . . Prevented . | . . . . . . Kills | -11 -10 -10 -9 -9 -8 ------- Run | Jun Mat Min Mat Min Mat Combat Hostiles Destroyed 19 | . 1 3 15 . . Guns 16 | . 1 3 12 . . Cannons 3 | . . . 3 . . Classes Destroyed 7 | 2 2 1 2 . . Builder 1 | . . 1 . . . Tunneler 2 | 2 . . . . . Recycler 1 | 1 . . . . . Watcher 2 | . 1 . 1 . . Swarmer 8 | . . . 8 . . Grunt 8 | . 1 3 4 . . Sentry 3 | . . . 3 . . Best Kill Streak 4 | 2 2 1 4 . . Combat Bots Only 4 | . 1 1 4 . . Max Kills in Single Turn 1 | 1 1 1 1 . . Gunslinging . | . . . . . . Exploded . | . . . . . . Melee . | . . . . . . Uniques/NPCs Destroyed . | . . . . . . Combat | -11 -10 -10 -9 -9 -8 -------- Run | Jun Mat Min Mat Min Mat Damage Taken 1110 | . 219 295 596 . . Core 199 | . 8 100 91 . . Absorbed by Shields . | . . . . . . Core Remaining (%) 77 | 100 . 56 . 77 . Volleys Fired 78 | 7 10 20 41 . . Largest 2 | 2 2 2 2 . . Hottest 115 | 90 90 90 115 . . Shots Fired 151 | 14 20 38 79 . . Gun 146 | 14 20 38 74 . . Cannon . | . . . . . . Launcher . | . . . . . . Special 5 | . . . 5 . . Kinetic . | . . . . . . Thermal 151 | 14 20 38 79 . . Explosive . | . . . . . . Electromagnetic . | . . . . . . Robot Hit Streak 13 | 8 10 8 13 . . Robot Miss Streak 4 | 1 3 2 4 . . Penetration Max . | . . . . . . Secondary Targets 3 | . 1 . 2 . . Max Gunslinging Chain 1 | . 1 . 1 . . Shots Hit Robots 108 | 11 13 29 55 . . Core Hits 43 | 4 5 9 25 . . Critical Kills . | . . . . . . Critical Parts Destroyed . | . . . . . . Critical Strikes 3 | . . 1 2 . . Burn 3 | . . 1 2 . . Melee Attacks . | . . . . . . Impact . | . . . . . . Slashing . | . . . . . . Piercing . | . . . . . . Sneak Attacks . | . . . . . . Combat Hostiles . | . . . . . . Follow-up Attacks . | . . . . . . Damage Inflicted 1438 | 131 152 346 809 . . Guns 1396 | 131 152 346 767 . . Cannons . | . . . . . . Explosions . | . . . . . . Melee . | . . . . . . Ramming . | . . . . . . Kinetic . | . . . . . . Thermal 1438 | 131 152 346 809 . . Explosive . | . . . . . . Electromagnetic . | . . . . . . Impact . | . . . . . . Slashing . | . . . . . . Piercing . | . . . . . . Highest Corruption . | . . . . . . Average Corruption . | . . . . . . Corruption Purged . | . . . . . . Corruption Blocked . | . . . . . . Overload Shots . | . . . . . . Overflow Damage . | . . . . . . Projectiles . | . . . . . . Explosions . | . . . . . . Melee . | . . . . . . Knockbacks . | . . . . . . Impact . | . . . . . . Kinetic . | . . . . . . Secondary . | . . . . . . Self-Inflicted Damage . | . . . . . . Shots . | . . . . . . Rammed 1 | 1 . . . . . Targets Rammed 1 | 1 . . . . . Kicked . | . . . . . . Crushed . | . . . . . . Highest Temperature 328 | 150 328 247 162 . . Average Temperature 87 | 62 158 101 49 . . Received Heat Transfer 465 | . 144 141 180 . . Siege Activations . | . . . . . . Robots Corrupted . | . . . . . . Combat Hostiles . | . . . . . . Parts Fried . | . . . . . . Impact Corruptions . | . . . . . . Robots Melted . | . . . . . . Combat Hostiles . | . . . . . . Parts Melted 6 | . 2 1 3 . . Heat Transferred 4017 | 347 397 979 2294 . . Parts Sabotaged . | . . . . . . Parts Stolen . | . . . . . . Parts Stripped . | . . . . . . Power Chain Reactions . | . . . . . . Missiles Intercepted . | . . . . . . Alert | -11 -10 -10 -9 -9 -8 ------- Run | Jun Mat Min Mat Min Mat Peak Influence 185 | 15 56 40 185 41 30 Initial 37 | . 8 18 13 37 . Average 40 | 8 20 30 79 19 17 Maximum Alert Level . | . . . . . . Low Security (%) 100 | 100 100 100 100 100 100 Level 1 . | . . . . . . Level 2 . | . . . . . . Level 3 . | . . . . . . Level 4 . | . . . . . . Level 5 . | . . . . . . High Security . | . . . . . . Max Security . | . . . . . . Squads Dispatched 3 | . 1 1 . . 1 Investigation 2 | . 1 . . . 1 Extermination . | . . . . . . Reinforcement . | . . . . . . Assault 1 | . . 1 . . . Garrison . | . . . . . . Intercept . | . . . . . . Searches Triggered . | . . . . . . Construction Impeded . | . . . . . . Haulers Reinforced . | . . . . . . Active Scanning Responses . | . . . . . . Cargo Convoy Interrupts . | . . . . . . Stealth | -11 -10 -10 -9 -9 -8 --------- Run | Jun Mat Min Mat Min Mat Distress Signals 5 | . 1 . 3 . 1 Communications Jammed . | . . . . . . Distress Signals . | . . . . . . Times Spotted 35 | . 8 6 18 . 3 Peak Tracking Total 5 | . 4 4 5 . 2 Tactical Retreats . | . . . . . . Traps | -11 -10 -10 -9 -9 -8 ------- Run | Jun Mat Min Mat Min Mat Traps Triggered 3 | . 2 . . . 1 Indirectly . | . . . . . . Trap Hack Attempts . | . . . . . . Triggered . | . . . . . . Disarmed . | . . . . . . Reprogrammed . | . . . . . . Reused . | . . . . . . Traps Extracted . | . . . . . . Installed . | . . . . . . Triggered . | . . . . . . Machines | -11 -10 -10 -9 -9 -8 ---------- Run | Jun Mat Min Mat Min Mat Machines Disabled . | . . . . . . Max in Single Turn . | . . . . . . Machines Repaired . | . . . . . . Machines Sabotaged . | . . . . . . Overloaded Fab Kills . | . . . . . . Hacking | -11 -10 -10 -9 -9 -8 --------- Run | Jun Mat Min Mat Min Mat Machines Accessed 8 | . 2 . 4 2 . Terminals 6 | . 2 . 3 1 . Fabricators . | . . . . . . Repair Stations . | . . . . . . Recycling Units 1 | . . . 1 . . Scanalyzers . | . . . . . . Garrison Access . | . . . . . . Total Hacks 14 | . 3 . 8 3 . Successful 12 | . 3 . 7 2 . Failed 2 | . . . 1 1 . Catastrophic . | . . . . . . Database Lockouts . | . . . . . . Manual 1 | . 1 . . . . Terminals 11 | . 3 . 6 2 . Fabricators . | . . . . . . Repair Stations . | . . . . . . Recycling Units 2 | . . . 2 . . Scanalyzers . | . . . . . . Garrison Access . | . . . . . . Terminal Hacks 10 | . 3 . 5 2 . Record 2 | . . . 2 . . Open Door 1 | . . . . 1 . Dispatch Records 1 | . 1 . . . . Maintenance Status 1 | . . . 1 . . Recall Investigation 1 | . 1 . . . . Hauler Manifests 1 | . . . 1 . . Zone Layout 3 | . 1 . 1 1 . Fabricator Hacks . | . . . . . . Repair Station Hacks . | . . . . . . Recycling Unit Hacks 2 | . . . 2 . . Report Inventory 1 | . . . 1 . . Retrieve Components 1 | . . . 1 . . Scanalyzer . | . . . . . . Garrison Access Hacks . | . . . . . . Unauthorized Hacks . | . . . . . . Terminals . | . . . . . . Fabricators . | . . . . . . Repair Stations . | . . . . . . Recycling Units . | . . . . . . Scanalyzers . | . . . . . . Garrison Access . | . . . . . . Data Cores Recovered . | . . . . . . Used . | . . . . . . Hacking Detections 4 | . 2 . 2 . . Full Trace Events . | . . . . . . Feedback Events . | . . . . . . Feedback Blocked . | . . . . . . Robot Schematics Acquired . | . . . . . . Robots Built . | . . . . . . Authchips . | . . . . . . Time . | . . . . . . Total Robot Build Rating . | . . . . . . Part Schematics Acquired . | . . . . . . Parts Built . | . . . . . . Authchips . | . . . . . . Time . | . . . . . . Total Part Build Rating . | . . . . . . Parts Repaired . | . . . . . . Time . | . . . . . . Parts Recycled . | . . . . . . Recycled Matter . | . . . . . . Retrieved Matter . | . . . . . . Retrieved Components 9 | . . . 9 . . Parts Scanalyzed . | . . . . . . Part Schematics Acquired . | . . . . . . Parts Damaged . | . . . . . . Bothacking | -11 -10 -10 -9 -9 -8 ------------ Run | Jun Mat Min Mat Min Mat Used RIF Installer . | . . . . . . Robots Hacked . | . . . . . . Non-combat . | . . . . . . Combat . | . . . . . . Robot Hacks Applied . | . . . . . . Relay Couplers Released . | . . . . . . Fabnet Peak Effective % . | . . . . . . Robots Rewired . | . . . . . . Allies Hacked . | . . . . . . Hacks Repelled . | . . . . . . Allies | -11 -10 -10 -9 -9 -8 -------- Run | Jun Mat Min Mat Min Mat Total Allies 1 | . . 1 . . . Largest Group 1 | . . 1 . . . Highest-Rated Group 31 | . . 31 . . . Highest-Rated Ally 31 | . . 31 . . . Total Orders . | . . . . . . Ally Attacks 22 | . . 9 . . 13 Total Damage 161 | . . 78 . . 83 Kills 2 | . . 1 . . 1 Allies Corrupted . | . . . . . . Allies Melted . | . . . . . . Intel | -11 -10 -10 -9 -9 -8 ------- Run | Jun Mat Min Mat Min Mat Robot Analysis Total . | . . . . . . Derelict Logs Recovered 3 | . . 2 . 1 . Drone Launches 3 | . . . . 3 . Drone Recoveries 1 | . . . . . 1 Exploration | -11 -10 -10 -9 -9 -8 ------------- Run | Jun Mat Min Mat Min Mat Turns Passed 3332 | 270 341 683 1099 803 136 Spaces Moved 1821 | 150 188 382 573 430 98 Core 2 | 2 . . . . . Treads 1444 | 148 188 382 565 161 . Legs 8 | . . . 8 . . Wheels . | . . . . . . Hover 83 | . . . . . 83 Flight 284 | . . . . 269 15 Fastest Speed 50 | 50 160 160 120 160 120 Average Speed 163 | 158 160 160 159 181 131 Slowest Speed 195 | 160 160 160 160 195 195 Overloaded Moves . | . . . . . . Propulsion Burnouts . | . . . . . . Robots Hopped . | . . . . . . Cave-ins Triggered . | . . . . . . Exploration Rate (%) 31 | 9 27 56 31 52 11 Regions Visited 5 Branch Regions 2 Pre-discovered Areas . | . . . . . . Known Exits Taken . | . . . . . . Unknown Exits Taken 5 | 1 1 1 1 1 . Scrap Searched 2 | . . 1 . 1 . Spaces Dug . | . . . . . . Terrain Destroyed . | . . . . . . Melee . | . . . . . . Projectile . | . . . . . . AOE . | . . . . . . Terrain Rammed . | . . . . . . Walls Destroyed . | . . . . . . Machines Disabled . | . . . . . . Actions | -11 -10 -10 -9 -9 -8 --------- Run | Jun Mat Min Mat Min Mat Total 2021 | 164 208 416 676 453 104 Wait 70 | . 7 6 38 15 4 Move 1816 | 149 187 381 572 429 98 Hop . | . . . . . . Pick Up 16 | . 4 4 6 2 . Fast Attach 14 | 7 . . 5 1 1 Attach 8 | . . 1 5 1 1 Detach 4 | . . . 3 1 . Swap 4 | . . 2 2 . . Drop 10 | . . 2 4 4 . Fire 78 | 7 10 20 41 . . Melee . | . . . . . . Ram . | . . . . . . Kick . | . . . . . . Crush 1 | 1 . . . . . Escape Stasis . | . . . . . . Rewire . | . . . . . . Trap . | . . . . . . Miscellaneous . | . . . . . . Route ------- -11/Junkyard -10/Materials -10/Mines -9/Materials -9/Mines -8/Materials History --------- Turn | Location | Event 10 | -11/Junkyard | Discovered new exit (range 16) 271 | -11/Junkyard | Entered Materials 310 | -10/Materials | Build established: Mutant 526 | -10/Materials | Discovered new exit (range 15) 612 | -10/Materials | Entered Mines 613 | -10/Mines | Met a Derelict testing a Signal Generator 1159 | -10/Mines | Discovered new exit (range 14) 1162 | -10/Mines | Learned Materials security intel 1234 | -10/Mines | Learned Materials stockpile data 1295 | -10/Mines | Entered Materials 1295 | -9/Materials | Evolved 2 slots: Propulsion x1, Utility x1 2142 | -9/Materials | Build established: Scavenger-Mutant 2351 | -9/Materials | Discovered new exit (range 17) 2394 | -9/Materials | Entered Mines 2567 | -9/Mines | Found the Drone Emporium 2574 | -9/Mines | Found Prototype Device 2577 | -9/Mines | Identified Thief Drone Bay 2681 | -9/Mines | Found a damaged Exp. Sensor Array with a note attached 2685 | -9/Mines | Found Prototype Device 2837 | -9/Mines | Learned Materials terminal intel 2964 | -9/Mines | Build established: Mutant 3181 | -9/Mines | Discovered new exit (range 8) 3197 | -9/Mines | Entered Materials 3197 | -8/Materials | Accompanied by 3 allies 3197 | -8/Materials | Evolved 2 slots: Propulsion x1, Utility x1 3198 | -8/Materials | Loaded intel: 12 terminal locations 3333 | -8/Materials | Self-destructed Last Messages --------------- LOCATION=UNKNOWN GOAL=ESCAPE Loading Materials terminal intel (x12)... Acquired Imp. Hover Unit. K-01 Serf collects debris. Y-45 Defender destroyed. R-06 Scavenger collects Heat Sink. K-01 Serf collects debris. Triggered Alarm Trap. An alarm sounds. ALERT: Alarm triggered, dispatching investigation squad. K-01 Serf collects debris. Y-45 Defender Lgt. Treads ripped off. Thief Drone sneak attacks. K-01 Serf collects debris. W-25 Informer distress signal alerts nearby ally. K-01 Serf collects debris. Thief Drone delivers Lgt. Treads. Thief Drone retrieved by Thief Drone Bay. Y-45 Defender Beam Rifle ripped off. Map ----- +----------------------------------------------------+ | ????? ?????????????????????????????????????????? | | ????? #?????????????????????????????????????????? | | ????? #?????????????????????????????????????????? | | ?????# #?????????????????????????????????????????? | | ??#### ### ??????????????????????????????????????? | | ??#### ### ??????????????????????????????????????? | | #?## # ??????????????????????????????????????? | | # ## # ??????????????????????????????????????? | | ? # ??????????????????????????????????????? | | ???# % #??????????????????????###??????????????? | | ???# #?????????????????????? #????????????? | | ##### #############??????????? ????????????? | | # #############??????????? ????????????? | | ? + ### ##??????????? ?????????????? | | ??? # ### ##??????????? ?????????????? | | ??? # ### ##??????????? #?????????????? | | ??? ## #### ##??????????# #????"""??????? | | ###### #### ##??????????# #????"T"??????" | | ###### #### ##??????????# w #?????????????T | | ## #### ##??????????# ##????????????" | | ## #### ##??????????# ######?####???? | | ## ####= ############# ##### #???? | | # ###+################# #???? | | # ! r k #???? | | + r nY #???? | | # @ =n #### #???? | | # #################+### ##???????????? | | ## ############ ###+####???????????? | | ## ###?????????????????????????????????????? | | ## ##??????????????????????????????????????? | | ###### ##??????????????????????????????????????? | | ###### ###########?????????????????????????????? | | ????## ###########?????????????????????????????? | | ????## # ##?????????????????????????????? | | ????## # """ ##?????????????????????????????? | | ????## # """ ##?????????????????????????????? | | ????## # """ ##?????????????????????????????? | | ????## + ##?????????????????????????????? | | ????## # """ ##?????????????????????????????? | | ????## # """ ! ##?????????????????????????????? | | ????## # """ ##?????????????????????????????? | | ????###### ##?????????????????????????????? | | ????################?????????????????????????????? | | ????????############?????????????????????????????? | | ?????????????????????????????????????????????????? | | ?????????????????????????????????????????????????? | | ?????????????????????????????????????????????????? | | ?????????????????????????????????????????????????? | | ?????????????????????????????????????????????????? | | ?????????????????????????????????????????????????? | +----------------------------------------------------+ Best States ------------- Heat Dissipation 38 Energy Generation 14 Energy Capacity 250 Matter Stores 300 Matter Capacity 300 Sight Range 18 Terrain Scan Range 16 Terrain Scan Density 85 Resistance: KI 20 Resistance: TH 20 Resistance: EX 20 Resistance: EM 20 Resistance: I 20 Resistance: S 20 Resistance: P 20 Evasion (%) 55 Recoil Reduction 3 Offensive Hacking 10 Item Schematics ----------------- None Robot Schematics ------------------ None Fabricated ------------ Nothing Alien Tech Used ----------------- None Achievements -------------- None Challenges ------------ None Game ------ Seed MachineDispersionSteel Manual? 0 Play Time 00:29:38 Cumulative 4.1 hours Start 2023.06.05 @ 01:08:21 End 2023.06.13 @ 08:04:52 Sessions 4 Manual Loads 0 Difficulty Adventurer Special Mode None Game No. 6 Rogue 0 Adventurer 5 Explorer 1 Win Type - Total 0 Types 0/0/0/0/0/0/0/0/0 Lore% 2 Gallery% 7 Achievement% 5 Wizard Run 0 Options --------- ASCII 0 Keyboard 1 Movement Arrows Keybinds 0 Fullscreen 1 Font 18/Terminus Map View 76x50 Tactical HUD 0 Map Filters NONE Filters NONE Steam 1 RUN: 9c7c722e-c928-4b1e-8337-c2141385f80b